bitfinex-derivatives/quotes_SOLF0:USTF0_20251119
["timestamp","ask_amount","ask_price","bid_price","bid_amount"]
[1763562603899,88.16,136.33,136.26,3.5977355]
[1763562603900,0.05063441,136.31,136.29,3.35425303]
[1763562605207,8.57773343,136.4,136.31,3.3]
[1763562605208,15.56,136.4,136.31,3.3]
[1763562605410,1.95,136.39,136.31,3.3]
[1763562606111,1.95,136.35,136.34,0.05621427]
[1763562606412,1.95,136.35,136.27,3.3]
[1763562606713,17.51,136.35,136.27,3.3]
[1763562607414,0.04783481,136.32,136.3,3.35372851]
[1763562608007,1.98783481,136.32,136.3,0.05372851]
[1763562608205,0.04783481,136.32,136.3,3.29372851]
[1763562608407,0.04783481,136.32,136.3,0.05372851]
[1763562608707,0.04783481,136.32,136.3,3.29372851]
[1763562608904,1.94,136.4,136.32,3.24]
[1763562609816,0.04906886,136.37,136.35,0.05192249]
[1763562610007,8.59366886,136.37,136.35,0.05192249]
[1763562610211,1.94,136.36,136.28,3.24]
[1763562610613,1.94,136.34,136.28,3.24]
[1763562610825,1.94,136.34,136.25,3.24]
[1763562611014,1.94,136.28,136.19,3.24]
[1763562611311,0.05174122,136.25,136.22,3.28930624]
[1763562612110,0.05174122,136.25,136.22,9.90080624]
[1763562612315,0.05174122,136.25,136.23,3.24]
[1763562612516,15.54,136.3,136.23,3.24]
[1763562612812,15.54,136.3,136.25,3.24]
[1763562613208,1.94,136.29,136.25,3.24]
[1763562613406,1.99608312,136.28,136.26,0.0498516]
[1763562613607,1.94,136.28,136.22,3.24]
[1763562613815,0.04734378,136.26,136.24,0.05146862]
[1763562614117,0.04734378,136.26,136.24,3.29146862]
[1763562614509,109.43917785,136.38,136.24,3.29146862]
[1763562614510,1.94,136.35,136.27,3.24]
[1763562614714,1.94,136.32,136.24,3.24]
[1763562615010,1.94,136.31,136.24,3.24]
[1763562615410,0.05422985,136.29,136.26,0.04771531]
[1763562615601,1.99422985,136.29,136.26,0.04771531]
[1763562616519,0.05422985,136.29,136.26,3.28771531]
[1763562616716,102.726,136.39,136.28,3.24]
[1763562616717,1.94,136.39,136.28,3.24]
[1763562616912,1.94,136.39,136.31,3.24]
[1763562617109,1.27678309,136.44,136.32,106.0149]
[1763562617322,15.54,136.43,136.36,9.8448]
[1763562617512,1.94,136.42,136.31,9.16910283]
[1763562617816,0.04923253,136.38,136.35,3.29284272]
[1763562619108,0.04923253,136.38,136.37,3.24]
[1763562619819,1.98923253,136.38,136.35,0.05284272]
[1763562620319,0.04923253,136.38,136.35,3.29284272]
[1763562620822,0.04923253,136.38,136.35,0.05284272]
[1763562621317,0.04923253,136.38,136.35,3.29284272]
[1763562621719,1.98923253,136.38,136.35,0.05284272]
[1763562623613,1.94,136.37,136.35,0.05284272]
[1763562623920,1.94,136.36,136.26,3.24]
[1763562624118,8.5463,136.34,136.26,3.24]
[1763562624314,15.56,136.33,136.26,3.24]
[1763562624723,22.1666,136.33,136.26,3.24]
[1763562624913,1.94,136.34,136.28,3.19289966]
[1763562624914,0.04849158,136.31,136.28,3.19289966]
[1763562626126,1.96849158,136.31,136.28,0.05289966]
[1763562626423,1.96849158,136.31,136.21,3.14]
[1763562626615,1.92,136.31,136.21,3.14]
[1763562626812,1.92,136.3,136.21,3.14]
[1763562627014,1.92,136.29,136.21,3.14]
[1763562627222,1.92,136.32,136.21,3.14]
[1763562627417,0.05096254,136.26,136.24,3.18862857]
[1763562627621,1.97,136.39,136.31,3.14]
[1763562627820,14.35,136.42,136.34,9.7458]
[1763562628220,14.35,136.42,136.34,3.14]
[1763562628419,12.38,136.42,136.36,3.14]
[1763562628615,0.04929595,136.39,136.38,3.14]
[1763562630323,15.56,136.45,136.39,3.14]
[1763562630827,17.58,136.5,136.42,3.14]
[1763562631129,2.02,136.49,136.42,3.14]
[1763562631331,2.02,136.49,136.34,124.8473]
[1763562631332,2.02,136.49,136.38,3.14]
[1763562631524,2.02,136.46,136.38,3.14]
[1763562631830,2.07101723,136.45,136.42,0.05638549]
[1763562632921,2.07,136.54,136.43,3.14]
[1763562633117,2.07,136.53,136.43,3.14]
[1763562633319,6.5967,136.54,136.4,5.97989409]
[1763562633320,104.7098,136.5,136.4,3.14]
[1763562633523,2.07,136.48,136.4,3.14]
[1763562633724,8.67,136.47,136.4,3.14]
[1763562633927,0.04918144,136.45,136.42,0.05530259]
[1763562634124,2.11918144,136.45,136.42,0.05530259]
[1763562634524,0.04918144,136.45,136.42,0.05530259]
[1763562634729,0.04918144,136.45,136.42,9.79710259]
[1763562634931,0.04918144,136.45,136.42,0.05530259]
[1763562635123,0.04918144,136.45,136.42,3.19530259]
[1763562636534,103.88027932,136.55,136.44,3.14]
[1763562636535,2.12,136.55,136.44,3.14]
[1763562636834,8.7162,136.55,136.45,3.14]
[1763562637020,17.7,136.54,136.45,3.14]
[1763562637227,2.12,136.52,136.45,3.14]
[1763562637433,2.12,136.5,136.41,3.14]
[1763562637728,0.04697685,136.47,136.44,3.38709175]
[1763562638027,0.04939055,136.47,136.44,3.39291113]
[1763562644029,2.18939055,136.47,136.44,0.05291113]
[1763562644235,8.78939055,136.47,136.44,0.05291113]
[1763562644432,104.8135,136.46,136.36,3.34]
[1763562644633,2.14,136.42,136.33,3.34]
[1763562644847,102.6928,136.43,136.33,3.34]
[1763562644848,8.7428,136.41,136.33,3.34]
[1763562645027,2.14,136.4,136.33,3.34]
[1763562645429,0.04634856,136.38,136.35,0.05337886]
[1763562645633,2.18634856,136.38,136.35,0.05337886]
[1763562646131,8.7448,136.37,136.3,3.34]
[1763562646538,2.14,136.36,136.27,3.34]
[1763562646740,2.14,136.35,136.27,3.34]
[1763562646932,0.05382659,136.32,136.3,0.05217739]
[1763562647534,2.19382659,136.32,136.3,0.05217739]
[1763562648541,0.05382659,136.32,136.3,3.39217739]
[1763562648738,0.05382659,136.32,136.3,0.05217739]
[1763562649534,0.05382659,136.32,136.3,3.39217739]
[1763562649944,0.05382659,136.32,136.3,0.05217739]
[1763562650636,2.19382659,136.32,136.3,0.05217739]
[1763562650840,0.05382659,136.32,136.3,0.05217739]
[1763562651032,0.05382659,136.32,136.3,3.39217739]
[1763562651432,0.05382659,136.32,136.3,0.05217739]
[1763562651635,2.19382659,136.32,136.3,0.05217739]
[1763562652034,2.14,136.31,136.23,3.34]
[1763562652239,15.6,136.3,136.23,3.34]
[1763562652447,17.74,136.3,136.23,3.34]
[1763562652742,17.74,136.3,136.19,102.8697]
[1763562652743,2.14,136.28,136.19,3.34]
[1763562653039,2.187786,136.25,136.22,0.054705]
[1763562653240,2.14,136.23,136.22,0.054705]
[1763562653745,2.14,136.23,136.16,3.34]
[1763562654434,15.6,136.24,136.16,3.34]
[1763562654435,15.6,136.24,136.18,3.34]
[1763562654742,0.05321997,136.22,136.21,3.34]
[1763562654944,0.04708677,136.23,136.21,3.34]
[1763562655143,0.04708677,136.23,136.2,0.04733419]
[1763562655337,0.04708677,136.23,136.2,3.38733419]
[1763562656037,2.18708677,136.23,136.2,0.04733419]
[1763562656240,0.04708677,136.23,136.2,0.04733419]
[1763562657048,0.04708677,136.23,136.2,3.38733419]
[1763562657240,8.11989409,136.31,136.22,3.34]
[1763562657241,2.14,136.31,136.22,3.34]
[1763562657541,15.62,136.31,136.25,106.168]
[1763562657744,15.62,136.31,136.27,3.34]
[1763562658344,0.04808217,136.3,136.28,3.3948492]
[1763562658538,2.14,136.38,136.28,3.3948492]
[1763562658539,2.14,136.38,136.3,3.34]
[1763562658735,2.14,136.42,136.33,6.6062]
[1763562658952,17.76,136.41,136.33,9.9462]
[1763562659147,2.14,136.41,136.34,3.34]
[1763562659348,2.14,136.44,136.36,6.605]
[1763562659541,0.04832922,136.41,136.39,0.04842847]
[1763562660450,0.04832922,136.41,136.39,3.38842847]
[1763562660648,2.18832922,136.41,136.39,0.04842847]
[1763562660844,2.14,136.4,136.29,3.34]
[1763562661048,2.14,136.4,136.31,3.34]
[1763562661748,0.04807076,136.37,136.34,106.14601518]
[1763562662046,2.14,136.49,136.39,3.34]
[1763562662247,8.7396,136.48,136.36,106.0842]
[1763562662443,21.61989409,136.5,136.36,106.0842]
[1763562662444,2.14,136.47,136.37,112.6812]
[1763562662647,2.14,136.47,136.37,3.34]
[1763562662952,0.05572174,136.43,136.41,3.39498651]
[1763562663144,102.6037,136.55,136.41,3.39498651]
[1763562663145,2.14,136.51,136.42,3.34]
[1763562663343,2.14,136.55,136.45,3.34]
[1763562663654,17.8,136.54,136.45,9.9403]
[1763562663858,2.14,136.51,136.41,3.34]
[1763562664158,2.19558958,136.47,136.45,0.04850031]
[1763562664454,17.78,136.46,136.37,3.34]
[1763562664650,2.14,136.45,136.37,3.34]
[1763562664853,2.14,136.44,136.33,3.34]
[1763562665359,0.0536265,136.4,136.37,0.05361432]
[1763562665855,0.0536265,136.4,136.37,3.39361432]
[1763562666446,2.14,136.51,136.4,3.34]
[1763562666649,2.14,136.49,136.4,3.34]
[1763562666842,2.14,136.48,136.37,102.7367]
[1763562667053,2.14,136.48,136.4,3.34]
[1763562667255,2.14,136.48,136.4,9.9427]
[1763562667454,2.14,136.48,136.36,106.0814]
[1763562667655,0.05354181,136.43,136.41,0.05611541]
[1763562667858,0.05539405,136.43,136.41,0.05293514]
[1763562668561,0.05539405,136.43,136.41,3.18293514]
[1763562669064,2.19539405,136.43,136.41,0.05293514]
[1763562669362,2.19539405,136.43,136.33,3.13]
[1763562669363,8.7428,136.41,136.33,3.13]
[1763562669669,2.14,136.39,136.29,3.13]
[1763562669954,104.8863,136.36,136.26,5.97989409]
[1763562670158,2.14,136.34,136.24,3.13]
[1763562670363,2.14,136.31,136.2,3.13]
[1763562670561,2.14,136.35,136.28,3.13]
[1763562670754,0.0531655,136.27,136.24,0.04958709]
[1763562670958,2.14,136.32,136.24,3.13]
[1763562671162,0.05313411,136.27,136.24,3.17818314]
[1763562671359,15.68,136.34,136.26,3.13]
[1763562671564,2.14,136.33,136.23,9.7409]
[1763562671759,15.68,136.34,136.26,3.13]
[1763562672062,15.68,136.34,136.27,3.13]
[1763562672247,2.14,136.33,136.23,3.13]
[1763562672450,0.04806822,136.29,136.27,0.04635471]
[1763562672653,0.04806822,136.29,136.27,3.17635471]
[1763562672854,15.68,136.33,136.27,3.17635471]
[1763562673066,2.14,136.37,136.28,3.13]
[1763562673747,15.7,136.38,136.29,3.13]
[1763562673954,0.05035998,136.35,136.32,3.18268847]
[1763562674249,0.05035998,136.35,136.32,9.78918847]
[1763562674448,0.05035998,136.35,136.32,3.18268847]
[1763562676358,0.05035998,136.35,136.32,0.05268847]
[1763562676866,0.05035998,136.35,136.32,3.18268847]
[1763562677064,2.14,136.42,136.34,3.13]
[1763562677262,15.7,136.41,136.34,3.13]
[1763562677656,2.14,136.43,136.36,6.6048]
[1763562677972,15.7,136.42,136.36,6.6048]
[1763562678171,2.14,136.39,136.38,0.0501838]
[1763562678364,0.05545561,136.4,136.37,0.04900435]
[1763562678567,2.18645715,136.4,136.37,0.05411928]
[1763562679067,0.04645715,136.4,136.37,0.05411928]
[1763562679268,2.18645715,136.4,136.37,0.05411928]
[1763562679568,0.04645715,136.4,136.37,0.05411928]
[1763562679772,0.04645715,136.4,136.39,3.13]
[1763562679969,90.18,136.52,136.42,3.13]
[1763562680169,17.84,136.51,136.42,3.13]
[1763562680368,17.84,136.51,136.43,105.82]
[1763562680565,17.84,136.51,136.43,3.13]
[1763562680766,15.7,136.51,136.46,3.13]
[1763562680968,0.0475247,136.5,136.47,0.04860865]
[1763562681673,2.1875247,136.5,136.47,0.04860865]
[1763562682171,2.1875247,136.5,136.4,3.13]
[1763562682363,2.14,136.49,136.37,3.13]
[1763562682562,2.14,136.47,136.37,3.13]
[1763562682976,2.14,136.47,136.38,105.8569]
[1763562683168,0.04717002,136.44,136.41,3.17798101]
[1763562683874,2.18717002,136.44,136.41,0.04798101]
[1763562684069,0.04717002,136.44,136.41,0.04798101]
[1763562684479,2.18717002,136.44,136.41,0.04798101]
[1763562684971,0.04717002,136.44,136.41,3.31798101]
[1763562685475,0.04717002,136.44,136.41,0.04798101]
[1763562685666,0.04717002,136.44,136.41,3.31798101]
[1763562686175,2.14,136.52,136.44,3.27]
[1763562686869,2.14,136.52,136.4,3.27]
[1763562687172,2.14,136.51,136.4,3.27]
[1763562687364,2.14,136.46,136.45,0.05373282]
[1763562687564,2.14,136.46,136.36,106.01]
[1763562687565,2.14,136.45,136.37,3.27]
[1763562687866,8.7409,136.45,136.37,3.27]
[1763562688062,2.14,136.45,136.37,3.27]
[1763562688372,6.6013,136.44,136.37,3.27]
[1763562688771,2.19464486,136.42,136.39,0.05589676]
[1763562688978,2.19464486,136.42,136.3,3.27]
[1763562688979,2.14,136.41,136.3,3.27]
[1763562689173,17.84,136.4,136.3,3.27]
[1763562689474,2.14,136.44,136.36,3.27]
[1763562689881,2.18791212,136.41,136.39,0.05486603]
[1763562690077,2.19300984,136.41,136.39,0.05486603]
[1763562690482,17.86,136.4,136.39,0.05486603]
[1763562690985,15.72,136.4,136.39,0.05486603]
[1763562691181,0.05300984,136.41,136.39,0.05486603]
[1763562691488,0.05300984,136.41,136.39,3.32486603]
[1763562691676,0.05300984,136.41,136.39,0.05486603]
[1763562692183,0.05300984,136.41,136.4,3.27]
[1763562692584,0.05300984,136.41,136.39,3.32486603]
[1763562693180,15.72,136.45,136.41,3.27]
[1763562693482,15.72,136.45,136.39,104.23246603]
[1763562693483,15.72,136.45,136.43,3.27]
[1763562693884,15.72,136.45,136.37,102.7298]
[1763562693885,15.72,136.45,136.39,9.8732]
[1763562694092,0.055323,136.43,136.41,0.05378037]
[1763562694490,2.195323,136.43,136.41,0.05378037]
[1763562694688,2.195323,136.43,136.34,3.27]
[1763562694689,0.055323,136.43,136.34,3.27]
[1763562694883,2.14,136.5,136.4,105.9815]
[1763562695087,17.86,136.54,136.44,3.27]
[1763562695489,2.14,136.53,136.44,3.27]
[1763562695786,2.19562024,136.5,136.47,0.05094598]
[1763562695990,2.14,136.48,136.37,3.27]
[1763562696188,15.72,136.47,136.37,3.27]
[1763562696390,17.86,136.47,136.37,3.27]
[1763562696588,24.4598,136.47,136.38,3.27]
[1763562696792,2.14,136.46,136.38,3.27]
[1763562696997,2.18828483,136.43,136.41,0.05242533]
[1763562697494,2.18828483,136.43,136.34,3.27]
[1763562697681,2.14,136.43,136.34,3.27]
[1763562697990,8.7523,136.42,136.34,3.27]
[1763562698197,102.6811,136.45,136.34,3.27]
[1763562698198,2.15,136.41,136.34,3.27]
[1763562698495,2.20390465,136.39,136.36,0.05228481]
[1763562699885,0.05390465,136.39,136.36,3.07228481]
[1763562700290,17.87,136.43,136.38,3.02]
[1763562700501,17.87,136.43,136.37,6.6043]
[1763562700704,17.87,136.43,136.35,3.02]
[1763562700902,2.15,136.42,136.31,12.16119352]
[1763562701195,2.15,136.42,136.35,0.04900686]
[1763562701196,2.15,136.36,136.35,0.04900686]
[1763562701400,17.87,136.36,136.27,3.02]
[1763562701788,2.15,136.35,136.27,3.02]
[1763562702192,15.72,136.37,136.3,6.6074]
[1763562702396,0.05099951,136.35,136.32,0.05045565]
[1763562702605,2.20099951,136.35,136.32,0.05045565]
[1763562703309,2.20099951,136.35,136.24,3.02]
[1763562703598,2.15,136.35,136.25,3.02]
[1763562703995,2.15,136.35,136.27,6.6091]
[1763562704203,2.15,136.35,136.25,3.02]
[1763562704405,0.05369743,136.31,136.29,0.04721428]
[1763562705305,2.20369743,136.31,136.29,0.04721428]
[1763562705502,2.20369743,136.31,136.21,3.02]
[1763562705503,17.87,136.3,136.21,3.02]
[1763562705699,15.72,136.3,136.21,3.02]
[1763562705902,15.72,136.3,136.22,3.02]
[1763562706104,15.72,136.3,136.27,3.02]
[1763562706507,0.0508689,136.3,136.28,3.02]
[1763562706706,0.0508689,136.3,136.27,0.04658441]
[1763562707105,0.0508689,136.3,136.27,3.06658441]
[1763562707506,0.0508689,136.3,136.27,0.04658441]
[1763562709607,0.0508689,136.3,136.27,3.06658441]
[1763562709804,0.0508689,136.3,136.27,105.87628441]
[1763562710005,102.6861,136.44,136.27,105.87628441]
[1763562710006,2.15,136.45,136.34,3.02]
[1763562710206,17.87,136.45,136.36,3.02]
[1763562710406,2.15,136.44,136.37,102.7354]
[1763562710610,2.15,136.48,136.39,105.7377]
[1763562710811,2.15,136.48,136.41,6.6022]
[1763562711013,2.15,136.48,136.43,0.05123141]
[1763562711014,0.0533223,136.46,136.43,0.05123141]
[1763562711515,2.2033223,136.46,136.43,0.05123141]
[1763562713515,2.2033223,136.46,136.36,105.7613]
[1763562713717,2.15,136.46,136.36,105.7613]
[1763562713914,2.15,136.46,136.39,3.02]
[1763562714116,17.89,136.49,136.41,102.7054]
[1763562714308,17.89,136.49,136.42,102.6989]
[1763562714504,0.05471259,136.47,136.42,102.6989]
[1763562714718,0.05471259,136.47,136.44,6.65361314]
[1763562714921,0.05471259,136.47,136.44,3.07281314]
[1763562715117,0.05471259,136.47,136.45,6.6004]
[1763562715618,2.15,136.53,136.48,102.6537]
[1763562715815,15.74,136.56,136.48,105.6737]
[1763562716118,17.89,136.56,136.48,105.6737]
[1763562716415,2.15,136.6,136.53,3.02]
[1763562716610,2.15,136.6,136.49,3.02]
[1763562716809,2.20310014,136.58,136.55,0.04982964]
[1763562717717,0.05310014,136.58,136.55,0.04982964]
[1763562718013,2.20310014,136.58,136.55,0.04982964]
[1763562718317,2.20310014,136.58,136.45,102.6695]
[1763562718318,2.20310014,136.58,136.48,3.02]
[1763562718519,2.15,136.58,136.48,3.02]
[1763562718819,2.15,136.56,136.48,3.02]
[1763562719015,15.74,136.55,136.48,3.02]
[1763562719224,0.05349093,136.53,136.5,0.04740321]
[1763562719625,2.20349093,136.53,136.5,0.04740321]
[1763562719917,0.05349093,136.53,136.5,0.04740321]
[1763562720509,2.20349093,136.53,136.5,0.04740321]
[1763562720715,0.05349093,136.53,136.5,0.04740321]
[1763562720915,2.20349093,136.53,136.5,0.04740321]
[1763562721115,0.05349093,136.53,136.5,0.04740321]
[1763562721515,2.20349093,136.53,136.5,0.04740321]
[1763562721716,2.20349093,136.53,136.42,3.02]
[1763562721717,8.7485,136.5,136.42,3.02]
[1763562721916,120.5374,136.49,136.42,3.02]
[1763562722124,102.6619,136.47,136.38,3.02]
[1763562722315,6.6005,136.46,136.38,3.02]
[1763562722719,0.04848419,136.43,136.41,0.05593247]
[1763562722919,0.04848419,136.43,136.34,9.14119352]
[1763562722920,17.93848419,136.43,136.34,3.02]
[1763562723118,15.74,136.43,136.34,3.02]
[1763562723416,2.15,136.41,136.31,3.02]
[1763562723622,2.15,136.4,136.31,3.02]
[1763562723823,2.15,136.37,136.27,3.02]
[1763562724118,0.05498423,136.33,136.31,3.07283193]
[1763562724319,15.74,136.36,136.31,3.07315149]
[1763562724524,15.74,136.41,136.34,3.02]
[1763562724728,15.74,136.41,136.35,102.7477]
[1763562724924,15.74,136.46,136.38,3.02]
[1763562725118,2.15,136.45,136.33,3.02]
[1763562725310,2.15,136.45,136.36,3.02]
[1763562725515,0.05196682,136.4,136.38,3.07257912]
[1763562725717,0.05299751,136.4,136.38,3.07257912]
[1763562726319,0.05299751,136.4,136.38,0.05257912]
[1763562728524,17.96299751,136.4,136.38,0.05257912]
[1763562728731,15.81299751,136.4,136.38,0.05257912]
[1763562729317,17.96299751,136.4,136.38,0.05257912]
[1763562729730,2.15,136.39,136.38,0.05257912]
[1763562729931,15.81299751,136.4,136.38,0.05257912]
[1763562730134,17.96299751,136.4,136.38,0.05257912]
[1763562730335,2.15,136.39,136.29,3.19]
[1763562730830,2.15,136.37,136.29,3.19]
[1763562731033,2.15,136.37,136.25,3.19]
[1763562731235,2.15,136.34,136.3,0.04801896]
[1763562731442,2.15,136.31,136.25,3.19]
[1763562731736,2.15,136.31,136.21,3.19]
[1763562731939,2.15,136.3,136.21,3.19]
[1763562732326,2.15,136.3,136.21,9.8019]
[1763562732631,2.19934892,136.27,136.24,0.04237642]
[1763562732833,15.81350156,136.27,136.24,3.23237642]
[1763562733034,0.05350156,136.27,136.24,3.23237642]
[1763562733629,0.05350156,136.27,136.26,3.19]
[1763562733831,15.76,136.32,136.28,3.19]
[1763562734030,2.2,136.44,136.31,105.9719]
[1763562734240,15.76,136.43,136.34,3.19]
[1763562734635,2.2,136.42,136.34,3.19]
[1763562734835,0.05086616,136.39,136.37,0.0484681]
[1763562735035,2.25086616,136.39,136.37,0.0484681]
[1763562735640,2.25086616,136.39,136.3,3.19]
[1763562735840,2.25086616,136.39,136.27,102.811]
[1763562735841,2.2,136.38,136.27,3.19]
[1763562736342,8.8047,136.37,136.27,3.19]
[1763562736532,15.78,136.36,136.27,3.19]
[1763562736728,0.04661572,136.33,136.3,0.04740988]
[1763562737534,0.04661572,136.33,136.3,3.23740988]
[1763562737736,2.2,136.41,136.33,3.19]
[1763562737938,15.78,136.4,136.33,3.19]
[1763562738738,0.05358297,136.38,136.35,0.05626121]
[1763562738942,0.05358297,136.38,136.35,105.99506121]
[1763562739139,0.05358297,136.38,136.35,3.24626121]
[1763562739344,0.05358297,136.38,136.35,0.05626121]
[1763562740137,2.25358297,136.38,136.35,0.05626121]
[1763562740339,2.25358297,136.38,136.27,3.19]
[1763562740545,2.2,136.38,136.27,3.19]
[1763562740843,2.2,136.38,136.28,105.9935]
[1763562741040,2.2,136.38,136.28,3.19]
[1763562741240,0.05192938,136.34,136.32,0.03776439]
[1763562741441,2.2,136.42,136.32,3.22776439]
[1763562741646,102.674,136.46,136.31,102.7776]
[1763562741647,15.78,136.45,136.36,105.9335]
[1763562741845,15.78,136.45,136.39,105.9109]
[1763562742041,15.78,136.45,136.41,6.6023]
[1763562742343,88.0,136.53,136.44,3.19]
[1763562742542,0.05629766,136.5,136.47,0.04727772]
[1763562743043,0.05629766,136.5,136.49,3.19]
[1763562743239,15.78,136.58,136.49,3.19]
[1763562743441,18.03,136.58,136.49,3.19]
[1763562743833,2.25,136.55,136.45,3.19]
[1763562744045,2.25,136.55,136.4,3.19]
[1763562744046,2.25,136.52,136.4,3.19]
[1763562744343,102.5914,136.57,136.46,3.33]
[1763562744344,2.25,136.57,136.46,3.33]
[1763562744548,15.8,136.56,136.47,3.33]
[1763562744747,2.3,136.55,136.43,9.9312]
[1763562745047,2.3,136.55,136.43,3.33]
[1763562745252,2.3,136.59,136.5,3.33]
[1763562745458,18.1,136.61,136.52,3.33]
[1763562745742,0.05169577,136.56,136.53,0.04974874]
[1763562746148,2.35169577,136.56,136.53,0.04974874]
[1763562746446,0.05169577,136.56,136.53,0.04974874]
[1763562746646,0.05169577,136.56,136.53,3.37974874]
[1763562747039,0.05169577,136.56,136.53,0.04974874]
[1763562747345,2.35169577,136.56,136.53,0.04974874]
[1763562747846,0.05169577,136.56,136.53,0.04974874]
[1763562748050,0.05169577,136.56,136.53,3.37974874]
[1763562748250,0.05169577,136.56,136.53,105.99554874]
[1763562748442,0.00169577,136.56,136.55,3.33]
[1763562749449,205.8994818,136.72,136.58,3.33]
[1763562749450,15.8,136.69,136.58,3.33]
[1763562749746,18.15,136.69,136.58,3.33]
[1763562749948,15.8,136.69,136.61,3.33]
[1763562750250,15.8,136.69,136.63,3.33]
[1763562750438,0.0487451,136.66,136.64,3.38568339]
[1763562750839,0.0487451,136.66,136.64,0.05568339]
[1763562751043,2.3987451,136.66,136.6,150.0]
[1763562751237,2.35,136.65,136.6,147.54202796]
[1763562751537,109.1594451,136.66,136.6,147.54202796]
[1763562751538,0.0487451,136.66,136.6,150.87202796]
[1763562751937,0.0487451,136.66,136.61,3.33]
[1763562752142,102.4391,136.77,136.65,3.33]
[1763562752342,2.4,136.75,136.65,3.33]
[1763562752550,2.4,136.74,136.65,3.33]
[1763562752856,2.4,136.73,136.64,3.33]
[1763562753151,0.04955961,136.7,136.67,0.05540924]
[1763562753344,18.22,136.77,136.68,3.33]
[1763562753655,18.22,136.77,136.67,102.56490924]
[1763562753656,2.4,136.8,136.69,3.33]
[1763562753863,2.4,136.76,136.65,3.33]
[1763562754049,2.4,136.75,136.65,3.33]
[1763562754353,0.04794468,136.71,136.69,0.04660657]
[1763562754555,2.4,136.73,136.69,0.04660657]
[1763562754751,0.04644656,136.71,136.69,0.04660657]
[1763562755638,2.44644656,136.71,136.69,0.04660657]
[1763562755843,3.90644656,136.71,136.6,253.43192796]
[1763562756039,2.4,136.71,136.61,3.33]
[1763562756751,0.05156084,136.67,136.65,0.05055999]
[1763562757142,2.45156084,136.67,136.65,0.05055999]
[1763562757341,2.4,136.66,136.6,147.54202796]
[1763562758455,2.4,136.64,136.62,0.05533823]
[1763562759851,8.9918,136.64,136.62,0.05533823]
[1763562760056,2.4,136.61,136.6,136.15352796]
[1763562760351,102.5961,136.56,136.46,6.5998]
[1763562760546,102.5961,136.56,136.45,3.06]
[1763562760547,118.4033,136.55,136.45,3.06]
[1763562760941,6.5972,136.53,136.45,3.06]
[1763562761146,0.05469246,136.5,136.48,0.05459]
[1763562762144,15.3825818,136.61,136.48,105.76669]
[1763562762450,102.5888,136.57,136.44,3.06]
[1763562762656,102.6018,136.55,136.44,3.06]
[1763562762950,102.6018,136.55,136.43,102.6863]
[1763562762951,15.82,136.54,136.48,102.6537]
[1763562763147,15.82,136.54,136.43,105.7463]
[1763562763350,0.05521708,136.52,136.46,102.6682]
[1763562763544,0.05521708,136.52,136.45,105.7342]
[1763562763545,0.05521708,136.52,136.47,3.1075615]
[1763562764053,0.05521708,136.52,136.47,0.0475615]
[1763562764258,102.67931708,136.52,136.47,0.0475615]
[1763562764552,102.6321,136.51,136.47,0.0475615]
[1763562764754,102.6414,136.5,136.47,0.0475615]
[1763562765239,125.067,136.49,136.47,0.0475615]
[1763562765641,126.527,136.49,136.47,0.0475615]
[1763562765844,102.6691,136.46,136.35,3.06]